[Event "71st RUS-ch Higher League 2018"]
[Site "Yaroslavl"]
[Date "2018.07.03"]
[Round "7"]
[White "Dreev, Aleksey"]
[Black "Gaifullin, Artur"]
[Result "1-0"]
[ECO "D39"]
[WhiteElo "2657"]
[BlackElo "2448"]
[Annotator "ChessBase"]
[PlyCount "113"]
[EventDate "2018.06.26"]
[EventType "swiss"]
[EventCountry "RUS"]
[SourceTitle "playchess.com"]
[Source "ChessBase"]
[SourceQuality "1"]
[TimeControl "40/5400+30:1800+30"]

1. d4 {[%emt 0:00:00]} Nf6 {[%emt 0:00:00]} 2. Nf3 {[%emt 0:00:00]} e6 {[%emt 0:00:00]} 3. c4 {[%emt 0:00:09]} d5 {[%emt 0:00:00]} 4. Nc3 {[%emt 0:00:06]} Bb4 {[%emt 0:00:00]} 5. Bg5 {[%emt 0:00:14]} dxc4 {[%emt 0:00:00]} 6. Qa4+ {[%emt 0:01:02]} Nc6 {[%emt 0:00:11]} 7. e3 {[%emt 0:00:32]} Bd7 {[%emt 0:01:50]} 8. Qc2 {[%emt 0:00:50]} b5 {[%emt 0:02:46]} 9. Be2 {[%emt 0:02:09]} Rb8 {[%emt 0:08:17]} 10. O-O {[%emt 0:05:16]} h6 {[%emt 0:02:35]} 11. Bh4 {[%emt 0:04:15]} Be7 {[%emt 0:01:21]} 12. Bxf6 {[%emt 0:20:26]} Bxf6 {[%emt 0:00:14]} 13. Ne4 {[%emt 0:00:07]} Be7 {[%emt 0:01:59]} 14. b3 {[%emt 0:01:13]} Nb4 {[%emt 0:07:22]} 15. Qb1 {[%emt 0:05:12]} Bc6 {[%emt 0:07:16]} 16. bxc4 {[%emt 0:08:45]} bxc4 {[%emt 0:00:05]} 17. Bxc4 {[%emt 0:00:20]} O-O {[%emt 0:01:09]} 18. a3 {[%emt 0:05:12]} Nd5 {[%emt 0:16:57]} 19. Qc2 {[%emt 0:02:01]} Ba8 {[%emt 0:13:55]} 20. Rfc1 {[%emt 0:03:05]} Bd6 {[%emt 0:02:42]} 21. Be2 {[%emt 0:14:38]} Qe7 {[%emt 0:05:05]} 22. Nc5 {[%emt 0:00:09]} Rb6 {[%emt 0:02:44]} 23. h3 {[%emt 0:11:28]} Rfb8 {[%emt 0:02:25]} 24. a4 {[%emt 0:00:20]} Rb2 {[%emt 0:07:59]} 25. Qd1 {[%emt 0:01:39]} e5 {[%emt 0:01:54]} 26. Nd3 {[%emt 0:08:16]} e4 {[%emt 0:04:14]} 27. Nxb2 {[%emt 0:00:06]} exf3 {[%emt 0:00:22]} 28. Bxf3 {[%emt 0:00:07]} Rxb2 {[%emt 0:02:41]} 29. Qd3 {[%emt 0:02:47]} Qh4 {[%emt 0:02:02]} 30. Rf1 {[%emt 0:02:46]} Nf4 {[%emt 0:02:54]} 31. Qf5 {[%emt 0:00:02]} Bxf3 {[%emt 0:00:50]} 32. Qc8+ {[%emt 0:00:38]} Bf8 {[%emt 0:00:35]} 33. exf4 {[%emt 0:00:22]} Be2 {[%emt 0:00:56]} 34. Rab1 {[%emt 0:01:02]} Rxb1 {[%emt 0:01:44]} 35. Rxb1 {[%emt 0:00:02]} Qxf4 {[%emt 0:00:08]} 36. Rb8 {[%emt 0:00:52]} Qd6 {[%emt 0:00:06]} 37. Qe8 {[%emt 0:00:39]} Bc4 {[%emt 0:00:53]} 38. Rd8 {[%emt 0:00:23]} Qb4 {[%emt 0:00:54]} 39. d5 {[%emt 0:00:09]} Kh7 {[%emt 0:01:25]} 40. Qe4+ {[%emt 0:00:00]} Kg8 {[%emt 0:00:00]} 41. d6 {[%emt 0:11:57]} cxd6 {[%emt 0:05:18]} 42. Qe7 {[%emt 0:00:20]} Kh7 {[%emt 0:02:18]} 43. Rxf8 {[%emt 0:00:59]} Bd5 {[%emt 0:02:27]} 44. Qe3 {[%emt 0:04:58]} a5 {[%emt 0:08:52]} 45. Qd3+ {[%emt 0:06:17]} Be4 {[%emt 0:00:29]} 46. Qb5 {[%emt 0:00:19]} Qe1+ {[%emt 0:08:49]} 47. Qf1 {[%emt 0:00:17]} Qc3 {[%emt 0:03:18]} 48. Rxf7 {[%emt 0:00:30]} d5 {[%emt 0:00:01]} 49. Qd1 {[%emt 0:01:33]} d4 {[%emt 0:00:47]} 50. Rf4 {[%emt 0:01:11]} Bd3 {[%emt 0:01:25]} 51. Rf3 {[%emt 0:00:58]} Bc2 {[%emt 0:00:07]} 52. Rxc3 {[%emt 0:00:10]} Bxd1 {[%emt 0:00:02]} 53. Rc4 {[%emt 0:01:21]} d3 {[%emt 0:00:11]} 54. Rd4 {[%emt 0:00:11]} Bc2 {[%emt 0:00:22]} 55. Kf1 {[%emt 0:00:52]} d2 {[%emt 0:03:14]} 56. Rxd2 {[%emt 0:00:15]} Bxa4 {[%emt 0:00:03]} 57. Rd5 {[%emt 0:00:06]} 1-0

[Event "71st RUS-ch Higher League 2018"]
[Site "Yaroslavl"]
[Date "2018.07.03"]
[Round "7"]
[White "Paravyan, David"]
[Black "Timofeev, Artyom"]
[Result "1/2-1/2"]
[ECO "D27"]
[WhiteElo "2634"]
[BlackElo "2583"]
[Annotator "ChessBase"]
[PlyCount "166"]
[EventDate "2018.06.26"]
[EventType "swiss"]
[EventCountry "RUS"]
[SourceTitle "playchess.com"]
[Source "ChessBase"]
[SourceQuality "1"]
[TimeControl "40/5400+30:1800+30"]

1. d4 {[%emt 0:03:05]} d5 {[%emt 0:00:00]} 2. c4 {[%emt 0:00:04]} dxc4 {[%emt 0:00:22]} 3. Nf3 {[%emt 0:02:00]} Nf6 {[%emt 0:00:20]} 4. e3 {[%emt 0:00:05]} e6 {[%emt 0:00:23]} 5. Bxc4 {[%emt 0:00:03]} c5 {[%emt 0:00:21]} 6. O-O {[%emt 0:00:06]} a6 {[%emt 0:00:19]} 7. b3 {[%emt 0:00:59]} cxd4 {[%emt 0:02:10]} 8. Nxd4 {[%emt 0:01:02]} Bd6 {[%emt 0:00:09]} 9. Bb2 {[%emt 0:05:56]} O-O {[%emt 0:01:44]} 10. Nc3 {[%emt 0:18:23]} Qe7 {[%emt 0:05:23]} 11. Bd3 {[%emt 0:17:20]} Bd7 {[%emt 0:07:44]} 12. Qf3 {[%emt 0:11:55]} Nc6 {[%emt 0:02:20]} 13. Ne4 {[%emt 0:00:33]} Nxe4 {[%emt 0:18:21]} 14. Bxe4 {[%emt 0:00:30]} Rac8 {[%emt 0:00:05]} 15. Rfc1 {[%emt 0:03:27]} Nxd4 {[%emt 0:09:02]} 16. Bxd4 {[%emt 0:00:09]} Rxc1+ {[%emt 0:00:12]} 17. Rxc1 {[%emt 0:00:06]} b5 {[%emt 0:00:03]} 18. g3 {[%emt 0:03:06]} e5 {[%emt 0:04:02]} 19. Bb6 {[%emt 0:02:27]} g6 {[%emt 0:06:27]} 20. Rd1 {[%emt 0:06:28]} h5 {[%emt 0:07:25]} 21. Qe2 {[%emt 0:00:50]} Rb8 {[%emt 0:06:06]} 22. Ba5 {[%emt 0:00:39]} Bg4 {[%emt 0:02:08]} 23. f3 {[%emt 0:01:37]} Be6 {[%emt 0:05:45]} 24. Qd3 {[%emt 0:03:31]} Bc5 {[%emt 0:01:29]} 25. Kf2 {[%emt 0:11:57]} Bb6 {[%emt 0:11:01]} 26. Bxb6 {[%emt 0:01:09]} Rxb6 {[%emt 0:00:04]} 27. Bxg6 {[%emt 0:00:39]} fxg6 {[%emt 0:00:09]} 28. Qxg6+ {[%emt 0:00:04]} Kf8 {[%emt 0:00:12]} 29. Qh6+ {[%emt 0:01:06]} Kg8 {[%emt 0:00:23]} 30. Qg6+ {[%emt 0:00:53]} Kf8 {[%emt 0:00:06]} 31. Qh6+ {[%emt 0:02:20]} Kg8 {[%emt 0:00:12]} 32. Qxh5 {[%emt 0:00:13]} Bf7 {[%emt 0:01:34]} 33. Qg4+ {[%emt 0:00:49]} Rg6 {[%emt 0:00:17]} 34. Qc8+ {[%emt 0:01:02]} Kg7 {[%emt 0:00:21]} 35. Rd7 {[%emt 0:01:29]} Qe6 {[%emt 0:02:46]} 36. g4 {[%emt 0:01:26]} e4 {[%emt 0:02:26]} 37. Qc3+ {[%emt 0:00:19]} Kh7 {[%emt 0:00:14]} 38. Qc7 {[%emt 0:00:33]} Kg7 {[%emt 0:02:23]} 39. Qc3+ {[%emt 0:00:30]} Qf6 {[%emt 0:01:34]} 40. Qxf6+ {[%emt 0:00:00]} Kxf6 {[%emt 0:00:00]} 41. h4 {[%emt 0:08:16]} exf3 {[%emt 0:09:33]} 42. g5+ {[%emt 0:00:30]} Ke6 {[%emt 0:03:03]} 43. Ra7 {[%emt 0:03:28]} Rg8 {[%emt 0:02:26]} 44. Kxf3 {[%emt 0:02:51]} Bh5+ {[%emt 0:02:05]} 45. Ke4 {[%emt 0:00:26]} Bg6+ {[%emt 0:00:49]} 46. Kf4 {[%emt 0:00:46]} Rf8+ {[%emt 0:03:34]} 47. Kg4 {[%emt 0:00:54]} Rf1 {[%emt 0:06:08]} 48. Rxa6+ {[%emt 0:00:30]} Kf7 {[%emt 0:00:04]} 49. a4 {[%emt 0:06:03]} Rg1+ {[%emt 0:00:55]} 50. Kf4 {[%emt 0:00:30]} Rh1 {[%emt 0:03:29]} 51. Ke5 {[%emt 0:01:22]} Rxh4 {[%emt 0:01:08]} 52. Ra7+ {[%emt 0:00:04]} Ke8 {[%emt 0:01:02]} 53. a5 {[%emt 0:05:43]} Rh3 {[%emt 0:03:26]} 54. a6 {[%emt 0:03:34]} Rxe3+ {[%emt 0:00:28]} 55. Kf6 {[%emt 0:00:03]} Bc2 {[%emt 0:01:48]} 56. Rb7 {[%emt 0:00:05]} Rf3+ {[%emt 0:00:24]} 57. Ke5 {[%emt 0:00:33]} Rxb3 {[%emt 0:00:53]} 58. a7 {[%emt 0:00:49]} Ra3 {[%emt 0:00:05]} 59. Rb8+ {[%emt 0:00:51]} Kf7 {[%emt 0:00:10]} 60. a8=Q {[%emt 0:00:04]} Rxa8 {[%emt 0:00:04]} 61. Rxa8 {[%emt 0:00:02]} b4 {[%emt 0:00:30]} 62. Ra6 {[%emt 0:02:25]} b3 {[%emt 0:00:11]} 63. Rb6 {[%emt 0:00:03]} Kg7 {[%emt 0:00:06]} 64. Kf4 {[%emt 0:00:18]} Kf7 {[%emt 0:00:14]} 65. Kg4 {[%emt 0:00:43]} Kg7 {[%emt 0:00:08]} 66. Kh4 {[%emt 0:00:33]} Kh7 {[%emt 0:00:16]} 67. Kg3 {[%emt 0:00:15]} Kg7 {[%emt 0:00:06]} 68. Kg4 {[%emt 0:00:23]} Bd1+ {[%emt 0:00:21]} 69. Kf4 {[%emt 0:00:14]} Bc2 {[%emt 0:00:06]} 70. Ke3 {[%emt 0:00:03]} Kf7 {[%emt 0:00:08]} 71. Kd2 {[%emt 0:00:05]} Kg7 {[%emt 0:00:06]} 72. Rf6 {[%emt 0:00:50]} Kh7 {[%emt 0:00:17]} 73. Kc3 {[%emt 0:00:30]} Kg7 {[%emt 0:00:07]} 74. Rb6 {[%emt 0:00:19]} Kf7 {[%emt 0:00:07]} 75. Kc4 {[%emt 0:00:10]} Kg7 {[%emt 0:00:07]} 76. Kd4 {[%emt 0:00:04]} Kf7 {[%emt 0:00:16]} 77. Kd5 {[%emt 0:00:11]} Kg7 {[%emt 0:00:09]} 78. Ke5 {[%emt 0:00:05]} Kf7 {[%emt 0:00:23]} 79. Kf4 {[%emt 0:00:07]} Kg7 {[%emt 0:00:05]} 80. Kg4 {[%emt 0:00:02]} Bd1+ {[%emt 0:00:13]} 81. Kh4 {[%emt 0:00:08]} Bc2 {[%emt 0:00:07]} 82. g6 {[%emt 0:00:24]} Bxg6 {[%emt 0:00:29]} 83. Rxb3 {[%emt 0:00:04]} Kf6 {[%emt 0:00:23]} 1/2-1/2

[Event "71st RUS-ch Higher League 2018"]
[Site "Yaroslavl"]
[Date "2018.07.03"]
[Round "7"]
[White "Lysyj, Igor"]
[Black "Pridorozhni, Aleksei"]
[Result "1-0"]
[ECO "D30"]
[WhiteElo "2630"]
[BlackElo "2589"]
[Annotator "ChessBase"]
[PlyCount "111"]
[EventDate "2018.06.26"]
[EventType "swiss"]
[EventCountry "RUS"]
[SourceTitle "playchess.com"]
[Source "ChessBase"]
[SourceQuality "1"]
[TimeControl "40/5400+30:1800+30"]

1. d4 {[%emt 0:00:00]} d5 {[%emt 0:00:00]} 2. c4 {[%emt 0:00:00]} e6 {[%emt 0:00:00]} 3. Nf3 {[%emt 0:00:00]} a6 {[%emt 0:00:11]} 4. Bg5 {[%emt 0:00:08]} Be7 {[%emt 0:00:07]} 5. Bxe7 {[%emt 0:00:06]} Qxe7 {[%emt 0:00:05]} 6. Nbd2 {[%emt 0:00:16]} Nf6 {[%emt 0:00:13]} 7. Rc1 {[%emt 0:01:02]} O-O {[%emt 0:00:08]} 8. e3 {[%emt 0:00:21]} Rd8 {[%emt 0:00:07]} 9. Qc2 {[%emt 0:04:35]} Nc6 {[%emt 0:01:38]} 10. cxd5 {[%emt 0:08:31]} exd5 {[%emt 0:03:10]} 11. a3 {[%emt 0:05:09]} Bg4 {[%emt 0:06:16]} 12. Bd3 {[%emt 0:00:53]} Bxf3 {[%emt 0:03:24]} 13. Nxf3 {[%emt 0:00:19]} Rd6 {[%emt 0:00:09]} 14. O-O {[%emt 0:04:28]} Re8 {[%emt 0:04:04]} 15. b4 {[%emt 0:21:42]} g6 {[%emt 0:05:54]} 16. Nd2 {[%emt 0:12:09]} Rc8 {[%emt 0:15:02]} 17. Nb3 {[%emt 0:00:46]} Nd8 {[%emt 0:00:16]} 18. a4 {[%emt 0:00:50]} Ne6 {[%emt 0:00:18]} 19. b5 {[%emt 0:00:29]} axb5 {[%emt 0:03:02]} 20. axb5 {[%emt 0:00:03]} Ra8 {[%emt 0:00:29]} 21. Ra1 {[%emt 0:01:11]} Rxa1 {[%emt 0:00:19]} 22. Rxa1 {[%emt 0:00:10]} b6 {[%emt 0:00:07]} 23. Nd2 {[%emt 0:06:30]} Ng5 {[%emt 0:04:45]} 24. Nf1 {[%emt 0:12:24]} Kg7 {[%emt 0:05:30]} 25. Rc1 {[%emt 0:00:32]} Ne6 {[%emt 0:00:42]} 26. Ng3 {[%emt 0:05:30]} Rd8 {[%emt 0:01:24]} 27. Ra1 {[%emt 0:00:06]} Qe8 {[%emt 0:02:14]} 28. Ra6 {[%emt 0:01:37]} Qf8 {[%emt 0:01:02]} 29. Ne2 {[%emt 0:00:52]} Qd6 {[%emt 0:00:18]} 30. h3 {[%emt 0:00:41]} h5 {[%emt 0:02:20]} 31. Ra1 {[%emt 0:01:05]} Re8 {[%emt 0:00:52]} 32. Nc3 {[%emt 0:00:41]} Rd8 {[%emt 0:00:08]} 33. Ne2 {[%emt 0:00:07]} Re8 {[%emt 0:00:05]} 34. Nc3 {[%emt 0:00:04]} Rd8 {[%emt 0:00:08]} 35. Bf1 {[%emt 0:01:48]} Re8 {[%emt 0:00:13]} 36. Be2 {[%emt 0:00:38]} Rd8 {[%emt 0:00:13]} 37. Bf1 {[%emt 0:00:12]} Re8 {[%emt 0:00:10]} 38. Qb1 {[%emt 0:06:57]} Rd8 {[%emt 0:00:49]} 39. Be2 {[%emt 0:01:39]} Re8 {[%emt 0:00:06]} 40. Bf1 {[%emt 0:00:00]} Rd8 {[%emt 0:00:00]} 41. Qb3 {[%emt 0:06:01]} Re8 {[%emt 0:01:48]} 42. Bd3 {[%emt 0:02:53]} Rd8 {[%emt 0:00:23]} 43. Be2 {[%emt 0:00:21]} Kg8 {[%emt 0:00:29]} 44. Nd1 {[%emt 0:07:57]} Re8 {[%emt 0:05:12]} 45. Qc2 {[%emt 0:00:46]} Kg7 {[%emt 0:00:49]} 46. Nb2 {[%emt 0:00:28]} Qb4 {[%emt 0:00:24]} 47. Ra4 {[%emt 0:02:48]} Qd6 {[%emt 0:08:21]} 48. Nd3 {[%emt 0:00:16]} Nd7 {[%emt 0:00:36]} 49. h4 {[%emt 0:02:17]} Nf6 {[%emt 0:04:35]} 50. g3 {[%emt 0:02:26]} Rc8 {[%emt 0:00:16]} 51. Ne5 {[%emt 0:00:53]} Nd7 {[%emt 0:00:10]} 52. Nc6 {[%emt 0:00:20]} Nb8 {[%emt 0:01:11]} 53. Ra8 {[%emt 0:01:11]} Qf8 {[%emt 0:00:06]} 54. Rxb8 {[%emt 0:00:32]} Rxb8 {[%emt 0:00:04]} 55. Nxb8 {[%emt 0:00:04]} Qxb8 {[%emt 0:00:05]} 56. Qc6 {[%emt 0:02:01]} 1-0

[Event "71st RUS-ch Higher League 2018"]
[Site "Yaroslavl"]
[Date "2018.07.03"]
[Round "7"]
[White "Rakhmanov, Aleksandr"]
[Black "Najer, Evgeniy"]
[Result "1/2-1/2"]
[ECO "E51"]
[WhiteElo "2627"]
[BlackElo "2668"]
[Annotator "ChessBase"]
[PlyCount "113"]
[EventDate "2018.06.26"]
[EventType "swiss"]
[EventCountry "RUS"]
[SourceTitle "playchess.com"]
[Source "ChessBase"]
[SourceQuality "1"]
[TimeControl "40/5400+30:1800+30"]

1. d4 {[%emt 0:00:00]} Nf6 {[%emt 0:00:57]} 2. c4 {[%emt 0:00:00]} e6 {[%emt 0:00:07]} 3. Nc3 {[%emt 0:00:06]} Bb4 {[%emt 0:00:13]} 4. e3 {[%emt 0:00:06]} O-O {[%emt 0:00:11]} 5. Nf3 {[%emt 0:01:22]} d5 {[%emt 0:01:37]} 6. Bd2 {[%emt 0:00:20]} a6 {[%emt 0:07:38]} 7. Qc2 {[%emt 0:05:52]} Re8 {[%emt 0:09:55]} 8. Bd3 {[%emt 0:07:35]} dxc4 {[%emt 0:08:19]} 9. Bxc4 {[%emt 0:00:26]} b5 {[%emt 0:00:23]} 10. Bd3 {[%emt 0:08:29]} Bb7 {[%emt 0:01:15]} 11. a3 {[%emt 0:05:42]} Bf8 {[%emt 0:12:10]} 12. Ng5 {[%emt 0:11:11]} g6 {[%emt 0:00:58]} 13. h4 {[%emt 0:00:45]} b4 {[%emt 0:32:01]} 14. Ne2 {[%emt 0:06:04]} Nc6 {[%emt 0:09:34]} 15. h5 {[%emt 0:23:04]} h6 {[%emt 0:00:06]} 16. Ne4 {[%emt 0:14:27]} Nxh5 {[%emt 0:00:53]} 17. Nc5 {[%emt 0:00:13]} Bxc5 {[%emt 0:00:07]} 18. Qxc5 {[%emt 0:00:29]} bxa3 {[%emt 0:07:01]} 19. bxa3 {[%emt 0:00:10]} Rb8 {[%emt 0:01:35]} 20. Rc1 {[%emt 0:03:41]} Qg5 {[%emt 0:03:53]} 21. Qxg5 {[%emt 0:04:00]} hxg5 {[%emt 0:00:01]} 22. f3 {[%emt 0:00:51]} Red8 {[%emt 0:00:20]} 23. Kf2 {[%emt 0:02:32]} e5 {[%emt 0:00:36]} 24. Be4 {[%emt 0:01:18]} Na7 {[%emt 0:00:28]} 25. Bb1 {[%emt 0:01:25]} exd4 {[%emt 0:00:52]} 26. exd4 {[%emt 0:00:23]} g4 {[%emt 0:00:15]} 27. fxg4 {[%emt 0:00:48]} Nf6 {[%emt 0:00:01]} 28. g5 {[%emt 0:01:20]} Nd5 {[%emt 0:01:08]} 29. Be4 {[%emt 0:00:49]} Nb5 {[%emt 0:00:24]} 30. a4 {[%emt 0:00:42]} Nd6 {[%emt 0:00:02]} 31. Bf3 {[%emt 0:00:33]} Ba8 {[%emt 0:01:28]} 32. Rc5 {[%emt 0:00:33]} Nb4 {[%emt 0:00:10]} 33. Nf4 {[%emt 0:00:40]} Bxf3 {[%emt 0:01:15]} 34. gxf3 {[%emt 0:00:01]} Nf5 {[%emt 0:00:27]} 35. d5 {[%emt 0:00:21]} Na2 {[%emt 0:00:21]} 36. Rc2 {[%emt 0:00:53]} Nb4 {[%emt 0:00:02]} 37. Rc5 {[%emt 0:00:30]} Na2 {[%emt 0:00:15]} 38. Rc2 {[%emt 0:00:15]} Nb4 {[%emt 0:00:06]} 39. Rxc7 {[%emt 0:00:57]} Nxd5 {[%emt 0:00:14]} 40. Nxd5 {[%emt 0:00:00]} Rxd5 {[%emt 0:00:00]} 41. Bc3 {[%emt 0:04:10]} Ng7 {[%emt 0:00:57]} 42. f4 {[%emt 0:02:36]} Nh5 {[%emt 0:02:25]} 43. Be5 {[%emt 0:03:41]} Rd2+ {[%emt 0:04:58]} 44. Ke3 {[%emt 0:00:41]} Rbd8 {[%emt 0:00:17]} 45. Rc3 {[%emt 0:01:17]} Kf8 {[%emt 0:09:28]} 46. Rxh5 {[%emt 0:14:28]} gxh5 {[%emt 0:00:05]} 47. Bf6 {[%emt 0:00:06]} R2d7 {[%emt 0:08:27]} 48. Bxd8 {[%emt 0:00:31]} Rxd8 {[%emt 0:00:01]} 49. Rc6 {[%emt 0:00:48]} a5 {[%emt 0:01:53]} 50. Rc5 {[%emt 0:02:59]} h4 {[%emt 0:00:53]} 51. Rxa5 {[%emt 0:00:45]} h3 {[%emt 0:00:06]} 52. Ra6 {[%emt 0:00:45]} Rd1 {[%emt 0:02:51]} 53. Rh6 {[%emt 0:00:40]} Ra1 {[%emt 0:00:02]} 54. Kf3 {[%emt 0:00:31]} Rxa4 {[%emt 0:00:07]} 55. Rxh3 {[%emt 0:03:18]} f6 {[%emt 0:01:11]} 56. gxf6 {[%emt 0:00:46]} Ra3+ {[%emt 0:02:18]} 57. Ke4 1/2-1/2

[Event "71st RUS-ch Higher League 2018"]
[Site "Yaroslavl"]
[Date "2018.07.03"]
[Round "7"]
[White "Predke, Alexandr"]
[Black "Potkin, Vladimir"]
[Result "1/2-1/2"]
[ECO "C65"]
[WhiteElo "2613"]
[BlackElo "2592"]
[Annotator "ChessBase"]
[PlyCount "99"]
[EventDate "2018.06.26"]
[EventType "swiss"]
[EventCountry "RUS"]
[SourceTitle "playchess.com"]
[Source "ChessBase"]
[SourceQuality "1"]
[TimeControl "40/5400+30:1800+30"]

1. e4 {[%emt 0:00:14]} e5 {[%emt 0:00:00]} 2. Nf3 {[%emt 0:00:07]} Nc6 {[%emt 0:00:00]} 3. Bb5 {[%emt 0:00:09]} Nf6 {[%emt 0:00:00]} 4. d3 {[%emt 0:00:14]} Bc5 {[%emt 0:00:03]} 5. Bxc6 {[%emt 0:00:13]} dxc6 {[%emt 0:00:09]} 6. Nbd2 {[%emt 0:00:06]} O-O {[%emt 0:00:52]} 7. Nb3 {[%emt 0:00:16]} Bd6 {[%emt 0:01:52]} 8. Bg5 {[%emt 0:00:08]} c5 {[%emt 0:06:15]} 9. Nbd2 {[%emt 0:13:42]} h6 {[%emt 0:12:13]} 10. Bh4 {[%emt 0:00:24]} Qe7 {[%emt 0:01:42]} 11. Nc4 {[%emt 0:05:36]} Qe6 {[%emt 0:00:49]} 12. Nfd2 {[%emt 0:11:34]} Re8 {[%emt 0:06:51]} 13. Ne3 {[%emt 0:03:08]} Nd7 {[%emt 0:02:10]} 14. g4 {[%emt 0:09:34]} Nf8 {[%emt 0:07:28]} 15. Bg3 {[%emt 0:01:53]} b5 {[%emt 0:06:41]} 16. h4 {[%emt 0:06:32]} Ng6 {[%emt 0:09:42]} 17. Qf3 {[%emt 0:03:30]} Nf4 {[%emt 0:07:52]} 18. Nf5 {[%emt 0:01:25]} c4 {[%emt 0:02:15]} 19. d4 {[%emt 0:11:30]} Bf8 {[%emt 0:07:10]} 20. h5 {[%emt 0:11:03]} Qb6 {[%emt 0:01:05]} 21. dxe5 {[%emt 0:01:41]} Ne6 {[%emt 0:00:06]} 22. O-O-O {[%emt 0:11:20]} Bb7 {[%emt 0:01:01]} 23. Bh4 {[%emt 0:05:46]} b4 {[%emt 0:13:00]} 24. Nxc4 {[%emt 0:00:36]} Qa6 {[%emt 0:00:17]} 25. b3 {[%emt 0:01:18]} Qxa2 {[%emt 0:00:09]} 26. Rd7 {[%emt 0:00:08]} Qa1+ {[%emt 0:05:47]} 27. Kd2 {[%emt 0:00:04]} Qc3+ {[%emt 0:00:17]} 28. Qxc3 {[%emt 0:00:22]} bxc3+ {[%emt 0:00:01]} 29. Kxc3 {[%emt 0:00:26]} Bxe4 {[%emt 0:00:18]} 30. Re1 {[%emt 0:00:48]} Bf3 {[%emt 0:01:37]} 31. Re3 {[%emt 0:00:25]} Bc6 {[%emt 0:01:44]} 32. Ne7+ {[%emt 0:00:54]} Bxe7 {[%emt 0:00:18]} 33. Rxe7 {[%emt 0:00:07]} Rxe7 {[%emt 0:00:38]} 34. Bxe7 {[%emt 0:00:04]} a5 {[%emt 0:00:05]} 35. Bh4 {[%emt 0:01:41]} a4 {[%emt 0:00:11]} 36. b4 {[%emt 0:00:24]} Nf4 {[%emt 0:03:52]} 37. Kb2 {[%emt 0:00:13]} Nd5 {[%emt 0:00:29]} 38. Rd3 {[%emt 0:00:35]} Nxb4 {[%emt 0:01:00]} 39. Rd8+ {[%emt 0:00:10]} Rxd8 {[%emt 0:00:05]} 40. Bxd8 {[%emt 0:00:00]} Nd5 {[%emt 0:00:00]} 41. e6 {[%emt 0:09:04]} fxe6 {[%emt 0:03:54]} 42. Ne5 {[%emt 0:00:04]} Be8 {[%emt 0:08:48]} 43. c4 {[%emt 0:00:12]} Nb4 {[%emt 0:00:22]} 44. Bxc7 {[%emt 0:00:14]} Nc6 {[%emt 0:00:05]} 45. Nd3 {[%emt 0:04:19]} e5 {[%emt 0:01:40]} 46. Nxe5 {[%emt 0:10:29]} Nxe5 {[%emt 0:00:12]} 47. Bxe5 {[%emt 0:00:04]} Bd7 {[%emt 0:01:04]} 48. g5 {[%emt 0:01:24]} hxg5 {[%emt 0:00:18]} 49. Ka3 {[%emt 0:00:15]} Kh7 {[%emt 0:01:20]} 50. Kb4 {[%emt 0:00:25]} 1/2-1/2

[Event "71st RUS-ch Higher League 2018"]
[Site "Yaroslavl"]
[Date "2018.07.03"]
[Round "7"]
[White "Popov, Ivan"]
[Black "Goryachkina, Aleksandra"]
[Result "1/2-1/2"]
[ECO "C11"]
[WhiteElo "2608"]
[BlackElo "2505"]
[Annotator "ChessBase"]
[PlyCount "73"]
[EventDate "2018.06.26"]
[EventType "swiss"]
[EventCountry "RUS"]
[SourceTitle "playchess.com"]
[Source "ChessBase"]
[SourceQuality "1"]
[TimeControl "40/5400+30:1800+30"]

1. e4 {[%emt 0:00:00]} e6 {[%emt 0:00:00]} 2. d4 {[%emt 0:00:00]} d5 {[%emt 0:00:00]} 3. Nc3 {[%emt 0:00:00]} Nf6 {[%emt 0:00:00]} 4. Bg5 {[%emt 0:00:00]} dxe4 {[%emt 0:00:25]} 5. Nxe4 {[%emt 0:00:06]} Be7 {[%emt 0:00:18]} 6. Bxf6 {[%emt 0:00:08]} gxf6 {[%emt 0:00:08]} 7. Qd2 {[%emt 0:00:24]} b6 {[%emt 0:02:05]} 8. O-O-O {[%emt 0:00:20]} Bb7 {[%emt 0:00:33]} 9. Nc3 {[%emt 0:00:17]} c6 {[%emt 0:01:31]} 10. Be2 {[%emt 0:00:11]} Nd7 {[%emt 0:02:25]} 11. Bh5 {[%emt 0:00:58]} Bd6 {[%emt 0:06:13]} 12. Ne4 {[%emt 0:35:29]} Bc7 {[%emt 0:01:48]} 13. f4 {[%emt 0:02:33]} Qe7 {[%emt 0:02:32]} 14. Nf3 {[%emt 0:01:46]} O-O-O {[%emt 0:02:55]} 15. Rhe1 {[%emt 0:02:21]} Qf8 {[%emt 0:18:21]} 16. Kb1 {[%emt 0:06:04]} Rg8 {[%emt 0:02:51]} 17. g4 {[%emt 0:04:43]} c5 {[%emt 0:03:17]} 18. Qe3 {[%emt 0:12:00]} c4 {[%emt 0:12:57]} 19. f5 {[%emt 0:04:24]} b5 {[%emt 0:04:02]} 20. Nc3 {[%emt 0:07:59]} a6 {[%emt 0:01:41]} 21. d5 {[%emt 0:07:20]} exd5 {[%emt 0:06:18]} 22. Nxd5 {[%emt 0:01:07]} Ne5 {[%emt 0:01:55]} 23. Nxe5 {[%emt 0:05:09]} Bxe5 {[%emt 0:05:13]} 24. Nb6+ {[%emt 0:05:00]} Kc7 {[%emt 0:00:42]} 25. g5 {[%emt 0:01:58]} Qb4 {[%emt 0:12:35]} 26. c3 {[%emt 0:00:01]} Bxc3 {[%emt 0:00:32]} 27. Qxc3 {[%emt 0:00:02]} Qxc3 {[%emt 0:00:12]} 28. bxc3 {[%emt 0:00:01]} Rxd1+ {[%emt 0:01:17]} 29. Bxd1 {[%emt 0:00:16]} Rxg5 {[%emt 0:04:04]} 30. Nxc4 {[%emt 0:00:20]} bxc4 {[%emt 0:00:10]} 31. Re7+ {[%emt 0:01:05]} Kb6 {[%emt 0:00:33]} 32. Bc2 {[%emt 0:01:02]} Rg1+ {[%emt 0:02:28]} 33. Kb2 {[%emt 0:00:01]} Rg2 {[%emt 0:00:43]} 34. Kc1 {[%emt 0:00:14]} Rg1+ {[%emt 0:02:11]} 35. Kb2 {[%emt 0:00:07]} Rg2 {[%emt 0:00:11]} 36. Kc1 {[%emt 0:00:02]} Rg1+ {[%emt 0:01:30]} 37. Kb2 1/2-1/2